bitfinex-derivatives/quotes_ETHF0:USTF0_20210401
["timestamp","ask_amount","ask_price","bid_price","bid_amount"]
[1617274916160,30.0,1925.1,1923.9,4.19345]
[1617274916360,30.0,1925.1,1924.6,2.90695]
[1617274918261,2.90695,1924.7,1924.4,2.90695]
[1617274920263,2.90695,1924.7,1924.6,2.90695]
[1617274920463,2.90695,1924.7,1924.6,4.42665]
[1617274921577,0.01469284,1925.6,1924.6,4.42665]
[1617274921967,30.01470273,1925.7,1924.6,4.42665]
[1617274922364,30.01470273,1925.7,1924.8,2.90695]
[1617274922565,0.01470513,1925.6,1924.8,2.90695]
[1617274923572,30.01470985,1925.7,1924.8,2.90695]
[1617274923967,30.0441409,1925.7,1924.8,2.90695]
[1617274924183,31.2716409,1925.7,1924.3,58.2451]
[1617274924377,2.90695,1924.4,1924.3,58.2451]
[1617274924578,4.08885,1924.4,1923.4,13.7261]
[1617274925388,1.1819,1924.4,1924.1,58.6324]
[1617274925572,30.0,1925.5,1924.1,58.6324]
[1617274925774,14.96362088,1925.6,1924.1,58.6324]
[1617274925977,30.01472088,1925.6,1924.1,58.6324]
[1617274926378,30.01472088,1925.6,1924.8,2.90695]
[1617274926577,30.0,1925.6,1924.8,2.90695]
[1617274927076,30.01473023,1925.6,1924.8,2.90695]
[1617274927475,0.01473023,1925.6,1924.8,2.90695]
[1617274928276,2.90695,1924.9,1924.8,2.90695]
[1617274929476,2.90695,1924.9,1924.6,1.0931]
[1617274929676,2.90695,1924.9,1924.1,60.233]
[1617274930577,0.01473296,1925.5,1924.8,2.90695]
[1617274932178,0.01473582,1925.6,1924.8,2.90695]
[1617274932480,2.90695,1924.9,1924.8,2.90695]
[1617274933684,0.01474642,1925.9,1924.9,78.4824]
[1617274934081,0.0147501,1926.0,1924.9,78.4824]
[1617274934483,0.02950019,1926.1,1925.9,2.90695]
[1617274934484,0.01475433,1926.1,1925.9,2.90695]
[1617274934682,0.01475433,1926.1,1925.9,4.05555]
[1617274934884,2.90695,1926.2,1925.9,4.05555]
[1617274936685,2.90695,1926.2,1926.1,2.90695]
[1617274941096,2.90695,1926.2,1925.6,66.7741]
[1617274941293,3.97495,1926.2,1924.3,1.0254]
[1617274941494,3.97495,1926.2,1925.2,70.0534]
[1617274942696,1.068,1926.2,1925.3,2.90695]
[1617274942896,1.068,1926.2,1925.2,70.0534]
[1617274943498,1.08274171,1926.2,1924.2,13.8721]
[1617274943695,84.7382,1925.8,1924.2,13.8721]
[1617274943898,30.0,1925.7,1924.2,13.8721]
[1617274944298,30.0,1925.7,1923.8,84.7382]
[1617274944497,30.0147134,1925.7,1923.8,84.7382]
[1617274944697,30.0147134,1925.7,1924.6,2.90695]
[1617274944899,30.0,1925.7,1923.8,84.7382]
[1617274945299,30.01471271,1925.7,1923.8,84.7382]
[1617274946599,2.90695,1924.8,1924.6,2.90695]
[1617274949902,85.8232,1925.8,1924.6,2.90695]
[1617274950102,1.085,1925.8,1924.6,2.90695]
[1617274950306,32.01471232,1926.0,1924.6,2.90695]
[1617274950505,0.01471023,1925.9,1924.7,80.6131]
[1617274950705,0.01471023,1925.9,1925.2,2.90695]
[1617274950902,0.01471023,1925.9,1924.7,80.6131]
[1617274952706,0.01471023,1925.9,1924.9,2.90695]
[1617274954708,2.90695,1925.0,1924.9,2.90695]
[1617274956610,2.90695,1925.0,1924.7,80.6131]
[1617274956810,4.56265,1925.0,1924.7,80.6131]
[1617274957912,2.90695,1925.0,1924.7,80.6131]
[1617274958111,2.90695,1925.0,1924.6,2.90695]
[1617274958712,2.90695,1924.7,1924.6,2.90695]
[1617274959112,2.90695,1924.7,1923.9,86.158]
[1617274960813,1.6431,1924.8,1924.1,2.90695]
[1617274962817,1.6431,1924.8,1924.3,2.90695]
[1617274964417,30.0,1925.2,1924.3,2.90695]
[1617274964617,0.01468113,1925.7,1924.8,79.0274]
[1617274964818,2.90695,1924.9,1924.8,79.0274]
[1617274965418,2.90695,1924.9,1924.6,2.90695]
[1617274968820,2.90695,1924.9,1924.8,2.90695]
[1617274971020,2.90695,1924.9,1924.8,66.80645]
[1617274973721,2.90695,1924.9,1924.8,63.8995]
[1617274975522,2.90695,1924.9,1924.8,65.0491]
[1617274976824,2.90695,1924.9,1924.8,66.80645]
[1617274977226,2.90695,1924.9,1924.8,67.84845]
[1617274978328,2.90695,1924.9,1924.8,66.80645]
[1617274979029,2.90695,1924.9,1924.8,63.8995]
[1617274982931,2.90695,1925.1,1924.8,63.8995]
[1617274984836,2.90695,1924.9,1924.8,63.8995]
[1617274985236,4.17655,1924.9,1924.8,63.8995]
[1617274985436,4.17655,1924.9,1922.9,14.5311]
[1617274985636,4.17655,1924.9,1924.2,64.9302]
[1617274986935,2.90695,1924.3,1924.2,64.9302]
[1617274987135,4.19975,1924.3,1924.2,64.9302]
[1617274987736,4.19975,1924.3,1923.9,2.90695]
[1617274988935,2.90695,1924.0,1923.9,2.90695]
[1617274990735,2.90695,1924.0,1923.4,75.079]
[1617274990936,1.2928,1924.3,1923.6,2.90695]
[1617274992237,30.0,1924.5,1923.6,2.90695]
[1617274993039,4.02075,1923.7,1923.6,2.90695]
[1617274993237,4.02075,1923.7,1921.8,16.7955]
[1617274993438,84.00965,1923.7,1922.5,79.9889]
[1617274994939,81.1027,1923.7,1922.7,2.90695]
[1617274997040,2.90695,1922.8,1922.7,2.90695]
[1617274997241,4.03055,1922.8,1922.7,2.90695]
[1617275000646,2.90695,1922.8,1922.7,2.90695]
[1617275001248,1.4152,1923.2,1922.7,2.90695]
[1617275001447,81.1027,1923.7,1922.7,2.90695]
[1617275002949,81.1027,1923.7,1922.5,79.9889]
[1617275002950,81.1027,1923.7,1923.2,2.90695]
[1617275003751,30.0,1923.6,1923.2,2.90695]
[1617275003951,30.0,1923.6,1922.5,79.9889]
[1617275004651,30.0,1923.6,1921.8,14.2115]
[1617275004852,58.964,1923.1,1921.8,14.2115]
[1617275005051,60.0002,1923.1,1922.7,2.90695]
[1617275005252,61.097,1923.1,1922.7,2.90695]
[1617275006954,2.90695,1922.8,1922.7,2.90695]
[1617275010263,0.02915761,1924.3,1922.7,2.90695]
[1617275010466,59.2192,1923.7,1922.7,2.90695]
[1617275010865,30.0,1923.6,1922.7,2.90695]
[1617275011064,2.90695,1922.8,1922.7,2.90695]
[1617275011567,2.90695,1922.8,1922.4,59.2192]
[1617275011765,2.90695,1922.8,1921.8,14.2115]
[1617275011966,67.27155,1922.8,1921.8,14.2115]
[1617275013168,64.3646,1922.8,1922.6,2.90695]
[1617275013666,64.3646,1922.8,1921.6,64.3646]
[1617275015167,2.90695,1922.4,1922.3,2.90695]
[1617275015367,4.21425,1922.4,1922.3,2.90695]
[1617275017071,2.90695,1922.6,1922.3,2.90695]
[1617275019076,2.90695,1922.6,1922.5,2.90695]
[1617275020874,2.90695,1922.6,1922.5,87.31435]
[1617275021076,2.90695,1922.6,1922.5,84.4074]
[1617275021678,3.99295,1922.6,1922.3,2.90695]
[1617275023079,2.90695,1922.4,1922.3,2.90695]
[1617275023478,2.89695,1922.4,1922.3,2.90695]
[1617275027184,2.90695,1922.6,1922.3,2.90695]
[1617275029290,4.23715,1922.4,1922.3,2.90695]
[1617275029987,5.28465,1922.4,1922.3,2.90695]
[1617275030188,4.23715,1922.4,1922.3,2.90695]
[1617275031392,4.23715,1922.4,1921.1,2.0]
[1617275033293,2.90695,1922.1,1922.0,2.90695]
[1617275034093,2.90695,1922.1,1921.1,2.0]
[1617275035296,1.3302,1922.4,1921.9,2.90695]
[1617275035495,63.7498,1922.0,1921.9,2.90695]
[1617275035694,64.9194,1922.0,1921.9,2.90695]
[1617275036295,64.9194,1922.0,1921.1,2.0]
[1617275037297,64.9194,1922.0,1921.7,2.90695]
[1617275039298,2.90695,1921.8,1921.7,2.90695]
[1617275042802,1.376,1922.5,1921.7,2.90695]
[1617275043006,1.0457,1922.9,1921.8,85.3774]
[1617275043204,85.3774,1923.5,1922.7,2.90695]
[1617275043605,14.9006,1924.1,1922.7,2.90695]
[1617275043804,0.01460207,1924.4,1922.7,88.26665]
[1617275043805,30.0,1924.3,1922.7,88.26665]
[1617275044204,32.0,1924.3,1922.7,88.26665]
[1617275044405,85.3597,1924.4,1922.7,88.26665]
[1617275045205,87.3597,1924.4,1922.7,88.26665]
[1617275045405,87.3597,1924.4,1923.2,2.90695]
[1617275047312,30.0,1924.5,1923.9,2.90695]
[1617275047516,30.0,1924.4,1923.9,2.90695]
[1617275048913,30.0,1924.4,1922.3,95.9695]
[1617275048914,30.0,1924.4,1922.3,2.0]
[1617275049313,30.0,1924.4,1923.4,2.90695]
[1617275049714,58.229,1924.6,1923.4,2.90695]
[1617275050117,88.229,1924.6,1923.4,2.90695]
[1617275050916,90.229,1924.6,1923.4,2.90695]
[1617275051317,60.229,1924.6,1923.6,2.90695]
[1617275051517,2.0,1924.6,1923.6,2.90695]
[1617275051715,2.0,1924.6,1923.8,75.2504]
[1617275053318,2.0,1924.6,1923.9,2.90695]
[1617275054220,1.0356,1924.7,1923.9,2.90695]
[1617275055020,2.0146596,1925.0,1923.9,2.90695]
[1617275055419,2.90695,1924.0,1923.9,2.90695]
[1617275057021,0.01466817,1925.2,1923.9,2.90695]
[1617275057625,31.0485728,1925.3,1924.5,3.95185]
[1617275058024,0.01467788,1925.2,1924.5,75.66705]
[1617275058423,1.04857945,1925.3,1924.5,75.66705]
[1617275058624,0.01467945,1925.3,1924.5,75.66705]
[1617275059225,0.01469498,1925.7,1924.5,75.66705]
[1617275059424,0.01469432,1925.8,1924.5,75.66705]
[1617275059624,0.01469432,1925.8,1924.9,4.10915]
[1617275059825,0.01470008,1925.9,1924.9,4.10915]
[1617275060625,0.04410173,1926.0,1924.9,4.10915]
[1617275060824,0.01469926,1925.9,1924.9,4.10915]
[1617275061525,0.01469926,1925.9,1925.1,2.90695]
[1617275061726,0.01469926,1925.9,1925.1,3.95305]
[1617275061925,0.01469926,1925.9,1925.1,2.90695]
[1617275063230,0.02940015,1926.0,1925.1,2.90695]
[1617275063231,0.01470325,1926.0,1925.1,2.90695]
[1617275063529,2.90695,1925.2,1925.1,2.90695]
[1617275066130,2.92170837,1925.2,1925.1,2.90695]
[1617275067130,2.92170837,1925.2,1924.5,71.7152]
[1617275067732,0.01475623,1925.1,1924.6,2.90695]
[1617275067933,2.39145623,1925.1,1923.8,14.7205]
[1617275068133,30.0,1925.0,1923.5,75.2712]
[1617275068534,32.0,1925.0,1923.5,75.2712]
[1617275068934,0.01474061,1924.6,1923.5,75.2712]
[1617275069135,30.0,1924.5,1923.5,75.2712]
[1617275069336,2.40634061,1924.6,1923.5,75.2712]
[1617275069736,2.90695,1923.8,1923.7,2.90695]
[1617275070735,2.90695,1923.8,1923.0,61.2693]
[1617275071640,1.111,1924.0,1923.4,2.90695]
[1617275073642,1.111,1924.0,1923.8,2.90695]
[1617275074041,1.111,1924.0,1923.0,61.2693]
[1617275075143,0.01471583,1924.2,1923.0,61.2693]
[1617275075742,2.90695,1923.8,1923.5,2.90695]
[1617275077643,2.90695,1923.8,1923.7,2.90695]
[1617275078844,2.90695,1923.8,1923.0,61.2693]
[1617275078845,4.21655,1923.8,1923.0,61.2693]
[1617275079645,1.3096,1923.8,1923.2,2.90695]
[1617275080945,0.01471621,1924.0,1923.2,2.90695]
[1617275081546,0.04416,1924.1,1923.2,2.90695]
[1617275081746,2.90695,1923.3,1923.2,4.26375]
[1617275082746,2.90695,1923.3,1923.2,2.90695]
[1617275083949,0.01472286,1924.0,1923.2,3.98295]
[1617275084347,0.01472186,1924.3,1923.7,61.7102]
[1617275084547,0.01472186,1924.3,1923.7,62.987]
[1617275084948,0.02944372,1924.4,1923.7,62.987]
[1617275084949,0.01472311,1924.4,1923.7,62.987]
[1617275085550,0.01472968,1924.6,1923.7,62.987]
[1617275085753,0.01472968,1924.6,1924.4,2.90695]
[1617275085949,0.01472968,1924.6,1924.4,4.18895]
[1617275086348,0.01473196,1924.7,1924.4,4.18895]
[1617275087751,2.90695,1924.5,1924.4,4.18895]
[1617275090053,1.0479,1924.6,1924.4,4.18895]
[1617275090256,0.01473196,1924.7,1924.4,4.18895]
[1617275090454,0.01474385,1925.0,1924.4,4.18895]
[1617275090855,0.01474385,1925.0,1924.6,62.8254]
[1617275091254,0.01474831,1925.1,1924.6,62.8254]
[1617275091654,0.01472691,1925.2,1924.6,62.8254]
[1617275091856,0.01472691,1925.2,1925.1,4.13165]
[1617275093056,0.01472691,1925.2,1925.1,1.2247]
[1617275093255,0.01472691,1925.2,1924.6,62.8254]
[1617275093856,2.90695,1924.7,1924.6,62.8254]
[1617275094056,2.90695,1924.7,1924.5,2.90695]
[1617275097956,2.90695,1924.7,1924.3,2.90695]
[1617275099860,2.90695,1924.4,1924.3,2.90695]
[1617275100059,2.90695,1924.4,1924.2,74.2926]
[1617275101063,2.90695,1924.4,1923.3,14.0729]
[1617275101861,61.2644,1924.6,1923.6,2.90695]
[1617275102462,1.224,1924.6,1923.6,2.90695]
[1617275102662,12.0,1924.3,1923.9,70.2801]
[1617275103262,30.0,1924.2,1922.1,14.3388]
[1617275103463,31.2697,1924.2,1923.0,69.8094]
[1617275103864,31.2697,1924.2,1923.2,2.90695]
[1617275105868,2.90695,1923.3,1923.2,2.90695]
[1617275106365,4.17695,1923.3,1923.2,2.90695]
[1617275107866,2.90695,1923.3,1923.0,2.90695]
[1617275109872,2.90695,1923.1,1923.0,2.90695]
[1617275111671,2.90695,1923.1,1922.5,63.749]
[1617275111873,1.3393,1923.4,1922.7,2.90695]
[1617275114073,3.98715,1922.8,1922.7,2.90695]
[1617275114272,3.98715,1922.8,1921.7,2.0]
[1617275114273,85.16735,1922.8,1921.4,81.1802]
[1617275115274,67.216,1922.2,1921.1,14.5512]
[1617275115674,68.4168,1922.2,1921.1,14.5512]
[1617275116074,68.4168,1922.2,1922.1,2.90695]
[1617275116473,68.4168,1922.2,1921.2,2.0]
[1617275117973,70.12295,1922.2,1922.1,2.90695]
[1617275118174,2.90695,1922.2,1922.1,2.90695]
[1617275118374,2.90695,1922.2,1922.1,2.59715]
[1617275118775,69.9796,1922.8,1922.1,2.59715]
[1617275118975,1.0298,1923.0,1922.1,2.59715]
[1617275119177,2.0,1923.2,1922.1,84.99255]
[1617275119576,30.0,1923.2,1922.1,2.59715]
[1617275119776,82.4721,1922.9,1921.2,2.0]
[1617275119977,82.4721,1922.9,1921.8,2.90695]
[1617275120178,84.9432,1922.9,1921.8,2.90695]
[1617275120575,114.9432,1922.9,1921.8,2.90695]
[1617275121577,2.0,1922.8,1921.8,2.90695]
[1617275121777,30.0,1922.7,1921.0,2.0]
[1617275121976,83.3482,1922.0,1921.3,2.90695]
[1617275122176,84.3776,1922.0,1921.3,2.90695]
[1617275122978,114.3776,1922.0,1921.3,2.90695]
[1617275123378,114.3776,1922.0,1920.0,95.9777]
[1617275123578,32.6202,1922.0,1920.0,14.2203]
[1617275123778,76.0035,1921.0,1920.0,14.2203]
[1617275123979,76.0035,1921.0,1920.5,2.90695]
[1617275123980,77.1222,1921.0,1920.5,2.90695]
[1617275124383,1.1187,1921.0,1920.5,2.90695]
[1617275125184,79.0014,1920.7,1919.1,2.0]
[1617275126089,79.0014,1920.7,1920.2,2.90695]
[1617275126284,79.0014,1920.7,1919.1,2.0]
[1617275126482,30.0,1920.7,1919.1,2.0]
[1617275126683,61.3146,1919.9,1919.1,2.0]
[1617275127085,62.8716,1919.9,1919.1,2.0]
[1617275127484,62.8716,1919.9,1918.4,13.9726]
[1617275127887,60.8748,1918.9,1917.6,1.1]
[1617275128087,62.1463,1918.9,1918.8,2.90695]
[1617275129285,63.1901,1918.9,1918.8,2.90695]
[1617275129486,2.3153,1918.9,1918.8,2.90695]
[1617275130086,5.22225,1918.9,1918.8,2.90695]
[1617275130487,4.17845,1918.9,1918.8,2.90695]
[1617275130888,1.2715,1918.9,1918.8,2.90695]
[1617275131491,73.0503,1918.9,1918.8,2.90695]
[1617275131689,1.2715,1918.9,1918.8,2.90695]
[1617275132093,1.0303,1918.9,1918.8,2.90695]
[1617275132289,1.5859,1919.4,1918.8,2.90695]
[1617275133291,2.90695,1919.9,1918.8,2.90695]
[1617275134093,66.4036,1920.8,1919.8,2.90695]
[1617275134292,14.1214,1921.8,1919.8,4.39705]
[1617275134693,73.4362,1922.0,1919.8,4.39705]
[1617275135095,73.4162,1922.0,1919.8,4.39705]
[1617275135696,2.0,1921.9,1919.8,2.90695]
[1617275136094,2.0,1921.9,1920.3,2.90695]
[1617275136493,33.0447,1921.9,1919.7,72.4068]
[1617275138896,32.0,1921.9,1919.7,72.4068]
[1617275139095,2.0,1921.9,1919.7,72.4068]
[1617275140099,2.90695,1920.9,1920.5,2.90695]
[1617275140300,2.90695,1920.9,1920.5,4.34565]
[1617275140702,3.93975,1920.9,1920.5,5.38005]
[1617275140900,1.0094,1922.0,1920.5,5.38005]
[1617275141103,1.0094,1922.0,1920.6,67.7518]
[1617275141502,13.8982,1922.6,1920.6,67.7518]
[1617275141702,43.8982,1922.6,1920.5,4.34565]
[1617275141905,67.827,1922.4,1920.5,2.90695]
[1617275142103,67.827,1922.4,1920.7,2.90695]
[1617275142501,68.8785,1922.4,1920.7,2.90695]
[1617275143306,30.0,1922.3,1919.7,67.827]
[1617275143504,30.0,1922.3,1917.8,1.6055]
[1617275143505,33.4574,1922.3,1918.1,13.8179]
[1617275143705,30.0,1921.4,1918.5,62.6675]
[1617275143906,2.0,1921.3,1918.5,62.6675]
[1617275144107,4.18065,1918.6,1918.5,65.57445]
[1617275144306,4.18065,1918.6,1916.9,14.8795]
[1617275144508,4.18065,1918.6,1917.3,63.3066]
[1617275146209,1.2737,1918.6,1917.7,2.90695]
[1617275146409,1.2737,1918.6,1917.3,63.3066]
[1617275146609,1.2737,1918.6,1916.1,76.8722]
[1617275146610,1.2737,1918.6,1915.9,14.8474]
[1617275146810,58.7023,1918.5,1915.9,14.8474]
[1617275147014,30.0,1918.4,1915.9,14.8474]
[1617275148212,30.0,1918.4,1916.5,2.90695]
[1617275149413,60.7023,1918.5,1916.5,2.90695]
[1617275149615,90.7023,1918.5,1916.5,2.90695]
[1617275150215,90.7023,1918.5,1916.8,2.90695]
[1617275152220,4.34855,1916.9,1916.8,2.90695]
[1617275153425,2.90695,1916.9,1916.8,2.90695]
[1617275153627,1.598,1918.2,1916.8,2.90695]
[1617275154226,2.90695,1917.3,1917.2,2.90695]
[1617275154425,2.90695,1917.3,1915.9,14.8474]
[1617275156225,1.4256,1917.4,1916.3,2.90695]
[1617275156626,1.4256,1917.4,1915.9,14.8474]
[1617275157027,31.4256,1917.4,1915.9,14.8474]
[1617275157427,2.0,1917.3,1914.8,77.8252]
[1617275157632,30.0,1917.2,1914.8,77.8252]
[1617275157831,2.0,1917.1,1914.8,77.8252]
[1617275158027,30.0,1917.0,1914.8,77.8252]
[1617275158228,30.0,1917.0,1914.8,2.90695]
[1617275158229,4.06925,1915.1,1914.8,2.90695]
[1617275158432,4.06925,1915.1,1913.8,13.9325]
[1617275159430,106.73325,1915.1,1912.6,13.7258]
[1617275159829,106.73325,1915.1,1912.3,1.1]
[1617275160230,103.8263,1915.1,1913.9,2.90695]
[1617275160629,73.8263,1915.1,1913.9,1.0525]
[1617275160832,73.8263,1915.1,1911.8,15.5444]
[1617275160833,31.1623,1915.1,1911.8,15.5444]
[1617275161031,59.32,1914.5,1911.8,15.5444]
[1617275161430,60.9425,1914.5,1911.8,15.5444]
[1617275161830,60.9425,1914.5,1911.8,14.4444]
[1617275162830,59.32,1914.5,1911.8,14.4444]
[1617275163031,59.32,1914.5,1911.8,44.4444]
[1617275163831,59.32,1914.5,1911.8,46.4444]
[1617275164233,59.32,1914.5,1913.9,2.90695]
[1617275165834,60.7831,1914.5,1912.3,1.625]
[1617275166234,60.7831,1914.5,1913.7,2.90695]
[1617275168337,2.90695,1913.8,1913.5,2.90695]
[1617275168538,59.32,1914.5,1913.5,4.38765]
[1617275168938,1.0297,1916.0,1913.5,4.38765]
[1617275169137,1.0328,1916.6,1913.5,4.38765]
[1617275169341,60.9453,1916.1,1913.5,4.38765]
[1617275170339,2.90695,1916.0,1915.7,2.90695]
[1617275170741,2.90695,1916.0,1915.7,4.07865]
[1617275172339,2.90695,1916.0,1915.9,2.90695]
[1617275172540,84.1768,1917.3,1915.9,2.90695]
[1617275172939,1.0351,1918.3,1915.9,2.90695]
[1617275173139,87.2437,1918.6,1915.9,2.90695]
[1617275173340,89.2437,1918.6,1915.3,87.2437]
[1617275173940,2.0,1918.4,1915.3,87.2437]
[1617275174139,30.0,1918.3,1915.3,87.2437]
[1617275174339,30.0,1918.3,1915.5,2.90695]
[1617275174340,31.0441,1918.3,1915.5,2.90695]
[1617275174543,31.0441,1918.3,1915.5,4.03915]
[1617275175542,2.0,1918.2,1915.5,1.1322]
[1617275175743,30.0,1918.1,1915.3,87.2437]
[1617275175946,2.0,1918.0,1915.3,87.2437]
[1617275176145,30.0,1917.9,1915.3,87.2437]
[1617275176344,2.0,1917.8,1915.4,2.90695]
[1617275176545,30.0,1917.7,1915.3,87.2437]
[1617275176745,2.0,1917.6,1915.3,87.2437]
[1617275176945,30.0,1917.5,1915.3,87.2437]
[1617275177148,32.0,1917.5,1915.3,87.2437]
[1617275177347,31.5018,1917.8,1915.3,87.2437]
[1617275177546,31.5018,1917.8,1915.3,88.8509]
[1617275177947,1.0441,1918.3,1915.3,88.8509]
[1617275178148,1.0441,1918.3,1915.3,90.8509]
[1617275178350,1.0441,1918.3,1916.0,2.90695]
[1617275178551,1.0441,1918.3,1916.0,4.36605]
[1617275179754,30.02,1918.5,1916.0,4.36605]
[1617275179953,0.02,1918.5,1916.0,4.36605]
[1617275180353,2.90695,1916.7,1916.5,2.90695]
[1617275180553,2.90695,1916.7,1916.5,4.32255]
[1617275184758,2.90695,1916.7,1916.5,2.90695]
[1617275184961,2.90695,1916.7,1916.1,65.2892]
[1617275185462,14.8796,1918.8,1916.1,65.2892]
[1617275185860,1.0489,1918.9,1916.1,65.2892]
[1617275186260,1.0489,1918.9,1916.9,2.90695]
[1617275186461,31.0508,1919.4,1916.9,4.20655]
[1617275186661,30.0,1919.4,1916.9,4.20655]
[1617275186861,32.0,1919.4,1916.9,4.20655]
[1617275187060,32.0,1919.4,1916.9,1.2996]
[1617275187462,33.0299,1919.4,1916.9,1.2996]
[1617275187862,33.0299,1919.4,1916.3,15.1396]
[1617275188062,34.332,1919.4,1916.3,15.1396]
[1617275188261,34.332,1919.4,1916.6,2.90695]
[1617275188462,34.332,1919.4,1916.6,4.20545]
[1617275188663,32.332,1919.4,1916.6,4.20545]
[1617275189263,30.0,1919.2,1916.6,4.20545]
[1617275189662,31.3516,1919.2,1916.3,15.1396]
[1617275189862,30.0,1919.0,1916.2,14.1065]
[1617275190065,2.0,1918.9,1916.2,14.1065]
[1617275190263,30.0,1918.8,1916.2,14.1065]
[1617275190463,2.90695,1916.3,1916.2,14.1065]
[1617275191062,2.90695,1916.3,1916.2,16.1065]
[1617275191263,30.0,1918.4,1916.2,15.5254]
[1617275191463,32.0,1918.4,1916.2,15.5254]
[1617275192361,32.0,1918.4,1916.5,2.90695]
[1617275192968,30.0,1918.4,1916.3,2.0]
[1617275194164,30.0,1918.9,1916.3,2.0]
[1617275194366,2.0,1918.8,1917.1,4.01055]
[1617275194766,30.0,1918.7,1917.1,1.1036]
[1617275194968,32.0,1918.7,1917.1,1.1036]
[1617275195569,32.0,1918.7,1916.3,14.6853]
[1617275195968,32.0,1918.7,1916.4,3.619]
[1617275196170,32.0,1918.7,1916.4,1.619]
[1617275196370,2.90695,1916.5,1916.4,1.619]
[1617275196570,4.11495,1916.5,1916.3,14.6853]
[1617275196770,4.11495,1916.5,1916.2,14.1065]
[1617275196969,5.16385,1916.5,1916.2,14.1065]
[1617275197170,4.11495,1916.5,1916.2,14.1065]
[1617275198170,5.14995,1916.5,1916.2,14.1065]
[1617275198371,2.90695,1916.3,1916.2,14.1065]
[1617275198571,32.90695,1916.3,1914.9,98.4111]
[1617275198773,2.90695,1916.3,1914.9,98.4111]
[1617275199171,2.90695,1916.3,1914.9,100.4111]
[1617275199370,2.90695,1916.3,1914.9,98.4111]
[1617275199771,2.89695,1916.3,1914.9,98.4111]
[1617275199972,32.89695,1916.3,1914.9,98.4111]
[1617275200372,30.0,1916.3,1915.2,2.90695]
[1617275201376,1.035,1916.5,1915.2,2.90695]
[1617275201575,1.0539,1916.9,1915.2,2.90695]
[1617275201975,84.5965,1917.8,1915.2,2.90695]
[1617275202378,84.5965,1917.8,1915.9,2.90695]
[1617275202577,30.0,1917.7,1914.9,99.544]
[1617275202978,30.0,1917.7,1914.9,98.4111]
[1617275203179,2.0,1917.6,1914.9,98.4111]
[1617275203377,30.0,1917.5,1914.9,98.4111]
[1617275203578,2.0,1917.4,1914.9,98.4111]
[1617275203779,30.0,1917.3,1914.9,98.4111]
[1617275203982,2.0,1917.2,1914.9,98.4111]
[1617275204182,32.0,1917.2,1914.9,98.4111]
[1617275204385,32.0,1917.2,1915.8,2.90695]
[1617275204582,32.0,1917.2,1915.8,4.26125]
[1617275204783,30.0,1917.2,1915.8,4.26125]
[1617275205184,30.0,1917.2,1915.8,1.3543]
[1617275206487,2.0,1917.6,1915.9,2.90695]
[1617275206885,2.0,1917.7,1915.9,2.90695]
[1617275207686,30.0,1917.6,1915.9,2.90695]
[1617275208088,30.0,1917.6,1915.8,1.3543]
[1617275208487,2.90695,1916.3,1916.2,2.90695]
[1617275208688,2.90695,1916.3,1915.8,1.3543]
[1617275209287,1.0434,1917.0,1915.8,1.3543]
[1617275209687,1.0434,1917.0,1915.0,2.0]
[1617275210288,84.5965,1917.8,1915.0,2.0]
[1617275210487,30.0,1918.2,1916.6,2.90695]
[1617275210689,30.0,1918.2,1916.6,4.52665]
[1617275211087,30.0,1918.2,1916.6,1.6197]
[1617275211487,2.0,1918.1,1916.6,1.6197]
[1617275211687,30.0,1918.0,1916.6,1.6197]
[1617275211888,32.0,1918.0,1916.6,1.6197]
[1617275212489,2.90695,1916.7,1916.6,1.6197]
[1617275212689,1.038,1917.0,1916.6,1.6197]
[1617275212889,30.0,1918.4,1916.6,1.6197]
[1617275213788,30.0,1918.4,1916.0,13.6838]
[1617275213789,32.0,1918.4,1916.0,13.6838]
[1617275213988,32.0,1918.2,1916.0,13.6838]
[1617275214589,2.90695,1916.1,1915.7,2.90695]
[1617275214991,2.90695,1916.1,1915.1,14.6423]
[1617275215591,2.90695,1916.1,1914.6,2.0]
[1617275215993,30.0,1916.0,1914.6,2.0]
[1617275216591,2.90695,1914.7,1914.6,4.90695]
[1617275217392,1.6101,1916.3,1914.6,4.90695]
[1617275217592,2.0,1916.5,1914.6,6.46715]
[1617275218594,77.1798,1916.6,1915.3,3.98005]
[1617275220595,2.90695,1915.4,1915.3,2.90695]
[1617275221496,2.90695,1915.4,1913.9,2.0]
[1617275221696,4.00995,1915.4,1913.9,2.0]
[1617275221898,4.00995,1915.4,1913.7,2.0]
[1617275222200,4.00995,1915.4,1913.6,15.0549]
[1617275222201,4.00995,1915.4,1914.0,2.0]
[1617275222601,4.18485,1914.3,1914.0,2.90695]
[1617275222797,4.18485,1914.3,1913.6,15.0549]
[1617275223204,4.18485,1914.3,1913.4,2.0]
[1617275223403,34.18485,1914.3,1913.4,2.0]
[1617275223597,65.3164,1914.1,1913.4,2.0]
[1617275223799,30.0,1914.0,1911.1,16.097]
[1617275223996,30.0,1914.0,1911.2,1.1]
[1617275224398,65.3164,1914.1,1911.2,1.1]
[1617275224597,65.3164,1914.1,1912.5,2.90695]
[1617275225000,66.3754,1914.1,1912.5,2.90695]